[Event "Early-Titled-Tuesday-Blitz-April-23-2024"]
[Site "Chess.com"]
[Date "2024.04.23"]
[Round "11"]
[White "jinbojinbo"]
[Black "TanitoluwaAps116"]
[Result "0-1"]
[WhiteElo "2649"]
[BlackElo "2784"]
[TimeControl "180+1"]
[EndTime "10:12:20 PDT"]
[Termination "TanitoluwaAps116 won on time"]

1. c4 {[%clk 0:03:00.9]} 1... e5 {[%clk 0:02:51.5]} 2. Nc3 {[%clk 0:03:00.7]}
2... Nc6 {[%clk 0:02:42.4]} 3. Nf3 {[%clk 0:03:00.2]} 3... Nf6 {[%clk 0:02:42]}
4. g3 {[%clk 0:03:00.1]} 4... d5 {[%clk 0:02:37.7]} 5. cxd5 {[%clk 0:03:01]}
5... Nxd5 {[%clk 0:02:38.6]} 6. Bg2 {[%clk 0:03:00.1]} 6... Bc5 {[%clk
0:02:39.2]} 7. O-O {[%clk 0:02:59.4]} 7... O-O {[%clk 0:02:38.4]} 8. d3 {[%clk
0:02:57.3]} 8... Nf6 {[%clk 0:02:30.5]} 9. Bd2 {[%clk 0:02:52.7]} 9... h6 {[%clk
0:02:21.6]} 10. Rc1 {[%clk 0:02:52]} 10... Be6 {[%clk 0:02:20.6]} 11. Na4 {[%clk
0:02:43.5]} 11... Bd6 {[%clk 0:02:16.4]} 12. Nc5 {[%clk 0:02:37.7]} 12... Bxc5
{[%clk 0:02:04.8]} 13. Rxc5 {[%clk 0:02:38.6]} 13... e4 {[%clk 0:02:05.5]} 14.
Ne1 {[%clk 0:02:30.8]} 14... Qd4 {[%clk 0:01:50.2]} 15. Be3 {[%clk 0:02:08]}
15... Qxb2 {[%clk 0:01:38.8]} 16. dxe4 {[%clk 0:02:08]} 16... Rad8 {[%clk
0:01:36.8]} 17. Nd3 {[%clk 0:02:07.8]} 17... Qxa2 {[%clk 0:01:34.9]} 18. Rc2
{[%clk 0:01:56.1]} 18... Qa4 {[%clk 0:01:27.4]} 19. Rb2 {[%clk 0:01:07.6]} 19...
Qxd1 {[%clk 0:00:59.5]} 20. Rxd1 {[%clk 0:01:08.5]} 20... b6 {[%clk 0:01:00.3]}
21. Rc1 {[%clk 0:01:07.7]} 21... Na5 {[%clk 0:01:01]} 22. Rxc7 {[%clk
0:01:01.4]} 22... Nc4 {[%clk 0:01:00.4]} 23. Bc1 {[%clk 0:00:27.1]} 23... Nxb2
{[%clk 0:00:58.2]} 24. Bxb2 {[%clk 0:00:28]} 24... Rd7 {[%clk 0:00:35.8]} 25.
Rc6 {[%clk 0:00:27.7]} 25... Rfd8 {[%clk 0:00:22.9]} 26. h3 {[%clk 0:00:23.9]}
26... Ne8 {[%clk 0:00:11.2]} 27. Be5 {[%clk 0:00:21.2]} 27... Rb7 {[%clk
0:00:03.8]} 28. Bb2 {[%clk 0:00:16.1]} 28... Rc8 {[%clk 0:00:03.6]} 29. e5
{[%clk 0:00:15.2]} 29... Rxc6 {[%clk 0:00:03.7]} 30. Bxc6 {[%clk 0:00:16.1]}
30... Rb8 {[%clk 0:00:04.6]} 31. f4 {[%clk 0:00:16.1]} 31... Bxh3 {[%clk
0:00:04.1]} 32. e4 {[%clk 0:00:13.5]} 32... Rc8 {[%clk 0:00:04.6]} 33. Bb5
{[%clk 0:00:12.7]} 33... Rc2 {[%clk 0:00:02.7]} 34. Bxe8 {[%clk 0:00:11.7]}
34... Rg2+ {[%clk 0:00:02.3]} 35. Kh1 {[%clk 0:00:11.4]} 35... Rd2 {[%clk
0:00:02.6]} 36. Bb5 {[%clk 0:00:10.8]} 36... Bf1 {[%clk 0:00:02.7]} 37. Bc3
{[%clk 0:00:08.2]} 37... Rc2 {[%clk 0:00:02.1]} 38. Bb4 {[%clk 0:00:06]} 38...
Re2 {[%clk 0:00:00.9]} 39. Bd6 {[%clk 0:00:05.8]} 39... Re3 {[%clk 0:00:01.6]}
40. e6 {[%clk 0:00:03.1]} 40... fxe6 {[%clk 0:00:01.2]} 41. f5 {[%clk
0:00:03.3]} 41... Bxd3 {[%clk 0:00:01.5]} 42. Bd7 {[%clk 0:00:03.3]} 42... Bxe4+
{[%clk 0:00:02.4]} 43. Kh2 {[%clk 0:00:02.8]} 43... Bxf5 {[%clk 0:00:03.3]} 44.
Bf4 {[%clk 0:00:03]} 44... Rd3 {[%clk 0:00:03.8]} 45. Be8 {[%clk 0:00:03.1]}
45... g5 {[%clk 0:00:03.6]} 46. Be5 {[%clk 0:00:03.5]} 46... Kf8 {[%clk
0:00:04.1]} 47. Bc6 {[%clk 0:00:03.6]} 47... h5 {[%clk 0:00:04.7]} 48. Bb8
{[%clk 0:00:03.5]} 48... h4 {[%clk 0:00:05.2]} 49. Bxa7 {[%clk 0:00:03.6]} 49...
hxg3+ {[%clk 0:00:05.5]} 50. Kg2 {[%clk 0:00:04.1]} 50... e5 {[%clk 0:00:06]}
51. Bxb6 {[%clk 0:00:03.8]} 51... e4 {[%clk 0:00:06.4]} 52. Bc5+ {[%clk
0:00:04.1]} 52... Kf7 {[%clk 0:00:07.1]} 53. Ba7 {[%clk 0:00:04]} 53... Kf6
{[%clk 0:00:07.5]} 54. Bb8 {[%clk 0:00:04.2]} 54... Kg6 {[%clk 0:00:08]} 55.
Bxg3 {[%clk 0:00:04.1]} 55... Kh5 {[%clk 0:00:08.7]} 56. Bc7 {[%clk 0:00:03.7]}
56... Kg4 {[%clk 0:00:09.3]} 57. Be5 {[%clk 0:00:03.4]} 57... Rd2+ {[%clk
0:00:09.5]} 58. Kf1 {[%clk 0:00:02.9]} 58... e3 {[%clk 0:00:10.2]} 59. Ke1
{[%clk 0:00:03]} 59... Bd3 {[%clk 0:00:10.2]} 60. Bg2 {[%clk 0:00:01.9]} 60...
Rxg2 {[%clk 0:00:09.6]} 0-1

[Event "Early-Titled-Tuesday-Blitz-April-23-2024"]
[Site "Chess.com"]
[Date "2024.04.23"]
[Round "11"]
[White "doctorcristian"]
[Black "AsselLesbekova"]
[Result "1/2-1/2"]
[WhiteElo "2584"]
[BlackElo "2462"]
[TimeControl "180+1"]
[EndTime "10:12:20 PDT"]
[Termination "Game drawn - insufficient material"]

1. d4 {[%clk 0:03:00.9]} 1... d5 {[%clk 0:02:59.9]} 2. Bf4 {[%clk 0:03:00.2]}
2... e6 {[%clk 0:03:00.3]} 3. e3 {[%clk 0:03:00.1]} 3... Bd6 {[%clk 0:03:00.8]}
4. Qg4 {[%clk 0:02:59.6]} 4... g6 {[%clk 0:03:00.4]} 5. Bxd6 {[%clk 0:02:58.8]}
5... Qxd6 {[%clk 0:03:01.3]} 6. Nc3 {[%clk 0:02:58.4]} 6... c6 {[%clk
0:02:55.4]} 7. O-O-O {[%clk 0:02:57.1]} 7... Nf6 {[%clk 0:02:55]} 8. Qh4 {[%clk
0:02:57.4]} 8... Qe7 {[%clk 0:02:54.2]} 9. f4 {[%clk 0:02:56.1]} 9... Ne4 {[%clk
0:02:52.5]} 10. Qxe7+ {[%clk 0:02:55.3]} 10... Kxe7 {[%clk 0:02:53.1]} 11. Nxe4
{[%clk 0:02:56]} 11... dxe4 {[%clk 0:02:53.8]} 12. Ne2 {[%clk 0:02:55.5]} 12...
b5 {[%clk 0:02:49.7]} 13. c4 {[%clk 0:02:54.5]} 13... bxc4 {[%clk 0:02:43]} 14.
Nc3 {[%clk 0:02:54.3]} 14... f5 {[%clk 0:02:43.7]} 15. Bxc4 {[%clk 0:02:53.6]}
15... Ba6 {[%clk 0:02:44.3]} 16. Bb3 {[%clk 0:02:48.8]} 16... Nd7 {[%clk
0:02:39.6]} 17. Na4 {[%clk 0:02:48.3]} 17... Bb5 {[%clk 0:02:37.1]} 18. Kd2
{[%clk 0:02:43.9]} 18... Rab8 {[%clk 0:02:33.2]} 19. Nc5 {[%clk 0:02:39.1]}
19... Nxc5 {[%clk 0:02:31.5]} 20. dxc5 {[%clk 0:02:39.5]} 20... Rhd8+ {[%clk
0:02:30.3]} 21. Kc3 {[%clk 0:02:39.9]} 21... Bd3 {[%clk 0:02:28.7]} 22. Ba4
{[%clk 0:02:35.9]} 22... Bb5 {[%clk 0:02:23.4]} 23. Bxb5 {[%clk 0:02:33.7]}
23... Rxb5 {[%clk 0:02:22.3]} 24. b4 {[%clk 0:02:33.8]} 24... Rdb8 {[%clk
0:02:20.7]} 25. a3 {[%clk 0:02:32.5]} 25... a5 {[%clk 0:02:20.8]} 26. Rd4 {[%clk
0:02:31.1]} 26... axb4+ {[%clk 0:02:20.7]} 27. axb4 {[%clk 0:02:31.5]} 27... Ra8
{[%clk 0:02:17.1]} 28. Kb3 {[%clk 0:02:31.5]} 28... h6 {[%clk 0:02:03.8]} 29.
Rhd1 {[%clk 0:02:30.8]} 29... Rb7 {[%clk 0:02:03]} 30. Rd6 {[%clk 0:02:29.7]}
30... Ra6 {[%clk 0:02:03.3]} 31. Rd8 {[%clk 0:02:22.9]} 31... g5 {[%clk
0:02:00.9]} 32. Rh8 {[%clk 0:02:22.9]} 32... gxf4 {[%clk 0:01:59.1]} 33. exf4
{[%clk 0:02:22.2]} 33... Rba7 {[%clk 0:01:55.2]} 34. Rh7+ {[%clk 0:02:20.9]}
34... Ke8 {[%clk 0:01:51.9]} 35. Rxa7 {[%clk 0:02:20]} 35... Rxa7 {[%clk
0:01:52.8]} 36. Rd6 {[%clk 0:02:20.6]} 36... Ke7 {[%clk 0:01:39.2]} 37. Rxc6
{[%clk 0:02:17.3]} 37... e3 {[%clk 0:01:29.3]} 38. Kc2 {[%clk 0:02:17.3]} 38...
Ra2+ {[%clk 0:01:24.5]} 39. Kd1 {[%clk 0:02:17.3]} 39... Rxg2 {[%clk 0:01:24.3]}
40. b5 {[%clk 0:02:17.4]} 40... Rb2 {[%clk 0:01:05.7]} 41. b6 {[%clk 0:02:17.5]}
41... e5 {[%clk 0:01:05.4]} 42. fxe5 {[%clk 0:02:12.5]} 42... f4 {[%clk
0:01:05.2]} 43. Rf6 {[%clk 0:02:13.1]} 43... Rb5 {[%clk 0:01:03.1]} 44. Rxf4
{[%clk 0:02:10.6]} 44... Rxc5 {[%clk 0:01:03.6]} 45. Rb4 {[%clk 0:02:07.4]}
45... Rc8 {[%clk 0:01:02.8]} 46. b7 {[%clk 0:02:07.4]} 46... Rb8 {[%clk
0:01:02.9]} 47. Rb6 {[%clk 0:02:07.9]} 47... Kd7 {[%clk 0:01:02.7]} 48. e6+
{[%clk 0:02:08.2]} 48... Kc7 {[%clk 0:01:00.3]} 49. Rb3 {[%clk 0:02:08.1]} 49...
Rd8+ {[%clk 0:00:55.7]} 50. Ke2 {[%clk 0:02:07.9]} 50... Kb8 {[%clk 0:00:56]}
51. Kxe3 {[%clk 0:02:08]} 51... Rd6 {[%clk 0:00:55.6]} 52. Kf4 {[%clk
0:02:04.8]} 52... Rxe6 {[%clk 0:00:56.2]} 53. Kf5 {[%clk 0:02:05]} 53... Re2
{[%clk 0:00:55.6]} 54. h3 {[%clk 0:02:05.3]} 54... Rg2 {[%clk 0:00:54.8]} 55.
Kf4 {[%clk 0:02:01.9]} 55... Rg5 {[%clk 0:00:53.4]} 56. h4 {[%clk 0:02:01.8]}
56... Rg1 {[%clk 0:00:52.9]} 57. Rb6 {[%clk 0:02:00.7]} 57... h5 {[%clk
0:00:48.4]} 58. Rb5 {[%clk 0:02:00.7]} 58... Rg4+ {[%clk 0:00:48.5]} 59. Ke5
{[%clk 0:01:49.4]} 59... Rxh4 {[%clk 0:00:48.2]} 60. Kd6 {[%clk 0:01:50.3]}
60... Rd4+ {[%clk 0:00:48.1]} 61. Kc6 {[%clk 0:01:50.5]} 61... Rc4+ {[%clk
0:00:48.4]} 62. Kb6 {[%clk 0:01:50.6]} 62... Rc7 {[%clk 0:00:43.8]} 63. Ka6
{[%clk 0:01:48.2]} 63... Rh7 {[%clk 0:00:43.9]} 64. Rb6 {[%clk 0:01:41.1]} 64...
h4 {[%clk 0:00:36.2]} 65. Rc6 {[%clk 0:01:40.5]} 65... Rh8 {[%clk 0:00:36.6]}
66. Rc2 {[%clk 0:01:34.5]} 66... Rh6+ {[%clk 0:00:29.4]} 67. Kb5 {[%clk
0:01:33.8]} 67... Kxb7 {[%clk 0:00:27]} 68. Rh2 {[%clk 0:01:34.7]} 68... Kc7
{[%clk 0:00:23.5]} 69. Kc5 {[%clk 0:01:35.1]} 69... Rh5+ {[%clk 0:00:22.4]} 70.
Kd4 {[%clk 0:01:35.2]} 70... Kd6 {[%clk 0:00:23]} 71. Ke4 {[%clk 0:01:35.7]}
71... Ke6 {[%clk 0:00:23.6]} 72. Kf4 {[%clk 0:01:36.1]} 72... Kf6 {[%clk
0:00:24.3]} 73. Kg4 {[%clk 0:01:36.6]} 73... Kg6 {[%clk 0:00:24.7]} 74. Kh3
{[%clk 0:01:37]} 74... Kg5 {[%clk 0:00:24.5]} 75. Rg2+ {[%clk 0:01:37]} 75...
Kf4 {[%clk 0:00:24.1]} 76. Rf2+ {[%clk 0:01:37.6]} 76... Ke3 {[%clk 0:00:24.2]}
77. Rf8 {[%clk 0:01:37.9]} 77... Rh7 {[%clk 0:00:23.5]} 78. Re8+ {[%clk
0:01:37.9]} 78... Kf4 {[%clk 0:00:23.4]} 79. Rf8+ {[%clk 0:01:38.2]} 79... Ke3
{[%clk 0:00:23.5]} 80. Re8+ {[%clk 0:01:38.3]} 80... Kf4 {[%clk 0:00:23.9]} 81.
Rf8+ {[%clk 0:01:38.7]} 81... Kg5 {[%clk 0:00:24.4]} 82. Rg8+ {[%clk 0:01:38.6]}
82... Kh5 {[%clk 0:00:25]} 83. Rg4 {[%clk 0:01:38.1]} 83... Ra7 {[%clk
0:00:23.7]} 84. Rxh4+ {[%clk 0:01:38.5]} 84... Kg5 {[%clk 0:00:24.2]} 85. Rb4
{[%clk 0:01:39.2]} 85... Ra3+ {[%clk 0:00:23.7]} 86. Kg2 {[%clk 0:01:40.1]}
86... Ra2+ {[%clk 0:00:24.1]} 87. Kf3 {[%clk 0:01:41]} 87... Ra3+ {[%clk
0:00:24.7]} 88. Ke4 {[%clk 0:01:41.7]} 88... Rg3 {[%clk 0:00:25]} 89. Rb5+
{[%clk 0:01:42]} 89... Kg4 {[%clk 0:00:25.4]} 90. Ke5 {[%clk 0:01:42.2]} 90...
Re3+ {[%clk 0:00:25.5]} 91. Kd4 {[%clk 0:01:42.3]} 91... Re1 {[%clk 0:00:25.8]}
92. Rb4 {[%clk 0:01:42.2]} 92... Kf3 {[%clk 0:00:25.9]} 93. Kd5 {[%clk
0:01:41.5]} 93... Rd1+ {[%clk 0:00:26.3]} 94. Kc5 {[%clk 0:01:42]} 94... Rc1+
{[%clk 0:00:26.6]} 95. Kd4 {[%clk 0:01:42]} 95... Ke2 {[%clk 0:00:26.5]} 96.
Rb2+ {[%clk 0:01:41.7]} 96... Kf3 {[%clk 0:00:27.2]} 97. Rd2 {[%clk 0:01:41.5]}
97... Rc8 {[%clk 0:00:26.8]} 98. Rd3+ {[%clk 0:01:41.9]} 98... Ke2 {[%clk
0:00:26.3]} 99. Re3+ {[%clk 0:01:41.7]} 99... Kd2 {[%clk 0:00:26.8]} 100. Re4
{[%clk 0:01:41.4]} 100... Rd8+ {[%clk 0:00:27.1]} 101. Kc4 {[%clk 0:01:41.9]}
101... Rc8+ {[%clk 0:00:27.7]} 102. Kb4 {[%clk 0:01:41.9]} 102... Rb8+ {[%clk
0:00:27.8]} 103. Kc5 {[%clk 0:01:42.6]} 103... Rc8+ {[%clk 0:00:28.1]} 104. Kd4
{[%clk 0:01:42.5]} 104... Rd8+ {[%clk 0:00:28.4]} 105. Ke5 {[%clk 0:01:42.9]}
105... Re8+ {[%clk 0:00:28.7]} 106. Kf4 {[%clk 0:01:43.8]} 106... Rxe4+ {[%clk
0:00:29.4]} 107. Kxe4 {[%clk 0:01:44.7]} 1/2-1/2

[Event "Early-Titled-Tuesday-Blitz-April-23-2024"]
[Site "Chess.com"]
[Date "2024.04.23"]
[Round "11"]
[White "vasblesk"]
[Black "dropstoneDP"]
[Result "0-1"]
[WhiteElo "2823"]
[BlackElo "3025"]
[TimeControl "180+1"]
[EndTime "10:12:23 PDT"]
[Termination "dropstoneDP won by resignation"]

1. d4 {[%clk 0:03:00.9]} 1... d5 {[%clk 0:02:58.3]} 2. c4 {[%clk 0:02:58]} 2...
dxc4 {[%clk 0:02:59.2]} 3. Nf3 {[%clk 0:02:57.8]} 3... Nf6 {[%clk 0:02:59.8]} 4.
e3 {[%clk 0:02:56.7]} 4... e6 {[%clk 0:03:00.3]} 5. Bxc4 {[%clk 0:02:56.4]} 5...
a6 {[%clk 0:03:01]} 6. O-O {[%clk 0:02:56.4]} 6... c5 {[%clk 0:03:01.6]} 7. dxc5
{[%clk 0:02:55.6]} 7... Bxc5 {[%clk 0:03:00.6]} 8. Qxd8+ {[%clk 0:02:55.1]} 8...
Kxd8 {[%clk 0:03:01.5]} 9. Be2 {[%clk 0:02:53.9]} 9... Ke7 {[%clk 0:03:01.4]}
10. Nc3 {[%clk 0:02:52]} 10... b5 {[%clk 0:02:57.2]} 11. Nd2 {[%clk 0:02:52]}
11... Bb7 {[%clk 0:02:49.8]} 12. Nb3 {[%clk 0:02:51.2]} 12... Bb4 {[%clk
0:02:50.4]} 13. Bd2 {[%clk 0:02:47.5]} 13... Nc6 {[%clk 0:02:29]} 14. a3 {[%clk
0:02:39.8]} 14... Bd6 {[%clk 0:02:27.3]} 15. Bf3 {[%clk 0:02:36.3]} 15... Rab8
{[%clk 0:02:24.8]} 16. a4 {[%clk 0:02:32.7]} 16... bxa4 {[%clk 0:02:20.6]} 17.
Rxa4 {[%clk 0:02:22.2]} 17... Ne5 {[%clk 0:02:14]} 18. Bd1 {[%clk 0:01:37.6]}
18... Rhc8 {[%clk 0:02:05.3]} 19. Na5 {[%clk 0:01:32.7]} 19... Ba8 {[%clk
0:02:01.7]} 20. Nb3 {[%clk 0:01:26.1]} 20... Bb7 {[%clk 0:01:44.2]} 21. Na5
{[%clk 0:01:24.7]} 21... Ba8 {[%clk 0:01:44.1]} 22. Nb3 {[%clk 0:01:24.7]} 22...
Rb6 {[%clk 0:01:19.3]} 23. Bc2 {[%clk 0:01:02.6]} 23... Nc4 {[%clk 0:01:17.9]}
24. Bc1 {[%clk 0:01:01.1]} 24... Bb4 {[%clk 0:01:10.2]} 25. Na2 {[%clk
0:00:52.9]} 25... Bd6 {[%clk 0:01:07.8]} 26. Nc3 {[%clk 0:00:46.2]} 26... Be5
{[%clk 0:00:48]} 27. h3 {[%clk 0:00:09]} 27... Nxb2 {[%clk 0:00:39.3]} 28. Bxb2
{[%clk 0:00:09.3]} 28... Bxc3 {[%clk 0:00:39.9]} 29. Ba3+ {[%clk 0:00:08.1]}
29... Ke8 {[%clk 0:00:39.4]} 30. Nc5 {[%clk 0:00:07.7]} 30... a5 {[%clk
0:00:30.9]} 31. Rc4 {[%clk 0:00:03.7]} 31... Bb4 {[%clk 0:00:31.5]} 32. Ba4+
{[%clk 0:00:03.7]} 32... Ke7 {[%clk 0:00:31.2]} 33. Bxb4 {[%clk 0:00:04.1]}
33... axb4 {[%clk 0:00:27.6]} 34. Rfc1 {[%clk 0:00:04.7]} 34... Bd5 {[%clk
0:00:23.7]} 35. R4c2 {[%clk 0:00:04.2]} 35... b3 {[%clk 0:00:21.5]} 36. Rb2
{[%clk 0:00:04.7]} 36... Ne4 {[%clk 0:00:20.2]} 37. Nd3 {[%clk 0:00:04.5]} 37...
Rxc1+ {[%clk 0:00:19.3]} 38. Nxc1 {[%clk 0:00:05.4]} 38... Nc5 {[%clk
0:00:19.9]} 39. Bxb3 {[%clk 0:00:04.1]} 39... Bxb3 {[%clk 0:00:17.1]} 40. f3
{[%clk 0:00:01.3]} 40... Rb7 {[%clk 0:00:17.6]} 41. Kf2 {[%clk 0:00:01.7]} 41...
Bc4 {[%clk 0:00:17.9]} 42. Rxb7+ {[%clk 0:00:01.6]} 42... Nxb7 {[%clk
0:00:18.8]} 43. e4 {[%clk 0:00:02.2]} 43... Nc5 {[%clk 0:00:18.9]} 44. Ke3
{[%clk 0:00:03.1]} 44... Nb3 {[%clk 0:00:19.1]} 45. Na2 {[%clk 0:00:02.6]} 45...
e5 {[%clk 0:00:18.8]} 46. Nc3 {[%clk 0:00:03.5]} 46... f6 {[%clk 0:00:18.5]} 47.
Kf2 {[%clk 0:00:04]} 47... Be6 {[%clk 0:00:19]} 48. Ke3 {[%clk 0:00:04.4]} 48...
Kf7 {[%clk 0:00:19.7]} 49. h4 {[%clk 0:00:04.6]} 49... h5 {[%clk 0:00:20.2]} 50.
g3 {[%clk 0:00:05.2]} 50... Na5 {[%clk 0:00:18.3]} 51. f4 {[%clk 0:00:05.3]}
51... Nc4+ {[%clk 0:00:18.6]} 52. Kf2 {[%clk 0:00:06]} 52... Nd6 {[%clk
0:00:18.4]} 53. Ke3 {[%clk 0:00:06.1]} 53... Bd7 {[%clk 0:00:18.7]} 54. Kf3
{[%clk 0:00:06]} 54... Bc6 {[%clk 0:00:19.2]} 55. Ke3 {[%clk 0:00:06.5]} 55...
Bxe4 {[%clk 0:00:14.9]} 56. Nxe4 {[%clk 0:00:06.5]} 56... Nxe4 {[%clk
0:00:10.5]} 57. Kxe4 {[%clk 0:00:07.4]} 57... Ke6 {[%clk 0:00:09.8]} 58. Ke3
{[%clk 0:00:05.3]} 58... Kf5 {[%clk 0:00:09.6]} 59. Kf3 {[%clk 0:00:02.1]} 59...
exf4 {[%clk 0:00:08.5]} 60. gxf4 {[%clk 0:00:02.3]} 60... g6 {[%clk 0:00:09]}
61. Ke3 {[%clk 0:00:02.3]} 61... Kg4 {[%clk 0:00:09.4]} 62. Ke4 {[%clk
0:00:02.9]} 62... Kxh4 {[%clk 0:00:09.4]} 63. Kf3 {[%clk 0:00:03.6]} 63... f5
{[%clk 0:00:09.4]} 64. Kf2 {[%clk 0:00:03.3]} 64... Kg4 {[%clk 0:00:10]} 65. Ke3
{[%clk 0:00:04.2]} 65... Kg3 {[%clk 0:00:10.5]} 66. Kd4 {[%clk 0:00:05.1]} 0-1

[Event "Early-Titled-Tuesday-Blitz-April-23-2024"]
[Site "Chess.com"]
[Date "2024.04.23"]
[Round "11"]
[White "ValentinDragnev"]
[Black "m_ezat"]
[Result "1-0"]
[WhiteElo "2745"]
[BlackElo "2623"]
[TimeControl "180+1"]
[EndTime "10:12:23 PDT"]
[Termination "ValentinDragnev won on time"]

1. d4 {[%clk 0:02:57.9]} 1... Nf6 {[%clk 0:02:53.4]} 2. Nf3 {[%clk 0:02:57.8]}
2... g6 {[%clk 0:02:53.2]} 3. Bf4 {[%clk 0:02:58]} 3... Bg7 {[%clk 0:02:53.3]}
4. e3 {[%clk 0:02:58.8]} 4... d6 {[%clk 0:02:53.6]} 5. h3 {[%clk 0:02:59.2]}
5... O-O {[%clk 0:02:54.5]} 6. Be2 {[%clk 0:02:59.8]} 6... Nfd7 {[%clk
0:02:55.1]} 7. Bh2 {[%clk 0:02:58.8]} 7... e5 {[%clk 0:02:56]} 8. c4 {[%clk
0:02:57.5]} 8... Nc6 {[%clk 0:02:55.8]} 9. Nc3 {[%clk 0:02:57.1]} 9... exd4
{[%clk 0:02:56]} 10. exd4 {[%clk 0:02:56.8]} 10... Re8 {[%clk 0:02:56.1]} 11.
O-O {[%clk 0:02:56.3]} 11... Nf6 {[%clk 0:02:55.2]} 12. Bd3 {[%clk 0:02:54.1]}
12... Nh5 {[%clk 0:02:52.3]} 13. Bc2 {[%clk 0:02:52.8]} 13... Bh6 {[%clk
0:02:47]} 14. Re1 {[%clk 0:02:37.6]} 14... Rxe1+ {[%clk 0:02:34.6]} 15. Qxe1
{[%clk 0:02:38.5]} 15... Bf4 {[%clk 0:02:33.8]} 16. Bxf4 {[%clk 0:02:23.2]}
16... Nxf4 {[%clk 0:02:23.2]} 17. Qe3 {[%clk 0:02:23.6]} 17... Nh5 {[%clk
0:02:20]} 18. Re1 {[%clk 0:02:20.9]} 18... Bd7 {[%clk 0:02:17.8]} 19. d5 {[%clk
0:02:10.4]} 19... Nb4 {[%clk 0:02:14.4]} 20. Bb1 {[%clk 0:02:07.8]} 20... a5
{[%clk 0:02:05.5]} 21. g4 {[%clk 0:01:37.2]} 21... Nf6 {[%clk 0:01:26.9]} 22.
Qf4 {[%clk 0:01:37.5]} 22... Kg7 {[%clk 0:01:20.9]} 23. Qd4 {[%clk 0:01:24.2]}
23... c5 {[%clk 0:01:20]} 24. dxc6 {[%clk 0:01:22.3]} 24... Nxc6 {[%clk
0:01:19.5]} 25. Qxd6 {[%clk 0:01:22.7]} 25... Be6 {[%clk 0:01:19.7]} 26. Qf4
{[%clk 0:01:18.5]} 26... Rc8 {[%clk 0:01:15.5]} 27. Rd1 {[%clk 0:01:13.2]} 27...
Qc7 {[%clk 0:01:13.2]} 28. Qxc7 {[%clk 0:01:09.3]} 28... Rxc7 {[%clk 0:01:12.8]}
29. b3 {[%clk 0:01:08.7]} 29... h5 {[%clk 0:01:07.9]} 30. g5 {[%clk 0:01:07.4]}
30... Nh7 {[%clk 0:01:07.1]} 31. Kg2 {[%clk 0:01:06.1]} 31... Rd7 {[%clk
0:01:02.9]} 32. Rxd7 {[%clk 0:01:04.4]} 32... Bxd7 {[%clk 0:01:02]} 33. Kg3
{[%clk 0:01:04.8]} 33... Nf8 {[%clk 0:01:01.4]} 34. h4 {[%clk 0:01:01.2]} 34...
Ne6 {[%clk 0:01:00.6]} 35. Nd5 {[%clk 0:00:58.9]} 35... Ned4 {[%clk 0:00:55.9]}
36. Nxd4 {[%clk 0:00:54.4]} 36... Nxd4 {[%clk 0:00:56]} 37. Ne3 {[%clk
0:00:44.7]} 37... Ne2+ {[%clk 0:00:50.8]} 38. Kf3 {[%clk 0:00:44.6]} 38... Nc3
{[%clk 0:00:51.2]} 39. Be4 {[%clk 0:00:44.5]} 39... b6 {[%clk 0:00:43.5]} 40. a3
{[%clk 0:00:38.4]} 40... a4 {[%clk 0:00:28.5]} 41. b4 {[%clk 0:00:36.4]} 41...
Be6 {[%clk 0:00:28.2]} 42. Bd5 {[%clk 0:00:28]} 42... Bd7 {[%clk 0:00:21.6]} 43.
Be4 {[%clk 0:00:24]} 43... Be6 {[%clk 0:00:21.1]} 44. c5 {[%clk 0:00:19.2]}
44... bxc5 {[%clk 0:00:19.7]} 45. bxc5 {[%clk 0:00:20.1]} 45... Nb5 {[%clk
0:00:19.7]} 46. Nc2 {[%clk 0:00:17.4]} 46... Bb3 {[%clk 0:00:17.7]} 47. Ke3
{[%clk 0:00:17.9]} 47... Kf8 {[%clk 0:00:10.7]} 48. Bc6 {[%clk 0:00:13.1]} 48...
Nc7 {[%clk 0:00:10.8]} 49. Nd4 {[%clk 0:00:12.3]} 49... Bd1 {[%clk 0:00:10.8]}
50. Kd2 {[%clk 0:00:11.5]} 50... Bb3 {[%clk 0:00:06.8]} 51. Kc3 {[%clk 0:00:08]}
51... Bd5 {[%clk 0:00:06.3]} 52. Bxa4 {[%clk 0:00:06.4]} 52... Ke7 {[%clk
0:00:04.9]} 53. Bb3 {[%clk 0:00:06.6]} 53... Bb7 {[%clk 0:00:04]} 54. a4 {[%clk
0:00:06.4]} 54... Ba6 {[%clk 0:00:03.8]} 55. a5 {[%clk 0:00:06.6]} 55... Bf1
{[%clk 0:00:02.9]} 56. Nc6+ {[%clk 0:00:05.8]} 1-0